lending/lending_fUSD_20260102
["ID","MTS","AMOUNT","RATE_DAILY","PERIOD"]
[400334890,1767384640003,-170.83,0.00042137,30]
[400334891,1767384640012,-999.0,0.00042191,120]
[400334892,1767384640021,-841.88259,0.0004253,120]
[400334893,1767384640030,-841.88259,0.0004253,120]
[400334894,1767384640039,-841.88259,0.0004253,120]
[400334895,1767384640048,-841.88259,0.0004253,120]
[400334896,1767384640058,-841.88259,0.0004253,120]
[400334897,1767384640067,-830.0,0.00042616,16]
[400334898,1767384640076,-315.0,0.00042618,16]
[400334899,1767384640085,-459.39100632,0.00042646,14]
[400334900,1767384640094,-150.0,0.00042658,60]
[400334901,1767384640103,-150.0,0.00042658,60]
[400334902,1767384640112,-150.0,0.00042658,60]
[400334903,1767384640120,-150.0,0.00042658,2]
[400334904,1767384640129,-150.0,0.00042658,60]
[400334905,1767384640138,-150.0,0.00042658,60]
[400334906,1767384640147,-150.0,0.00042658,2]
[400334907,1767384640156,-150.0,0.00042658,60]
[400334908,1767384640165,-2000.0,0.00042661,120]
[400334909,1767384640174,-2000.0,0.00042661,120]
[400334910,1767384640182,-800.0,0.00042676,60]
[400334911,1767384640192,-500.0,0.00042676,60]
[400334912,1767384640201,-171.38516895,0.00042687,14]
[400334913,1767384640210,-1000.0,0.00042687,14]
[400334914,1767384640219,-1000.0,0.00042711,14]
[400334915,1767384640228,-695.6,0.00042714,120]
[400334916,1767384640237,-1000.0,0.00042715,14]
[400334917,1767384640247,-1000.0,0.00042726,14]
[400334918,1767384640257,-150.0,0.0004274,30]
[400334920,1767384640267,-150.0,0.0004274,30]
[400334922,1767384640277,-150.0,0.0004274,30]
[400334924,1767384640286,-150.0,0.00042756,14]
[400334925,1767384640295,-1000.0,0.00042787,14]
[400334926,1767384640304,-1000.0,0.0004279,14]
[400334927,1767384640315,-150.0,0.00042795,60]
[400334929,1767384640328,-150.0,0.00042795,60]
[400334931,1767384640337,-150.0,0.00042795,60]
[400334933,1767384640346,-200.0,0.00042795,60]
[400334934,1767384640355,-150.0,0.00042795,60]
[400334935,1767384640367,-150.0,0.00042795,60]
[400334937,1767384640376,-150.0,0.00042799,14]
[400334938,1767384640385,-1000.0,0.00042821,14]
[400334939,1767384640395,-508.0,0.00042824,10]
[400334940,1767384640404,-150.0,0.00042838,14]
[400334941,1767384640414,-150.0,0.00042841,14]
[400334942,1767384640423,-1000.0,0.00042848,14]
[400334943,1767384640432,-7197.6755,0.00042859,2]
[400334944,1767384640442,-332.02134088,0.00042864,120]
[400334945,1767384640451,-150.14249155,0.00042864,9]
[400334946,1767384640460,-2934.33703132,0.00042864,15]
[400334947,1767384640469,-1277.31698378,0.00042865,120]
[400334948,1767384640479,-189.09279759,0.00042865,8]
[400334949,1767384640488,-346.3197033,0.00042865,19]
[400334950,1767384640497,-9103.02618725,0.00042865,15]
[400334951,1767384640506,-1000.0,0.00042868,14]
[400334952,1767384640515,-150.0,0.000429,27]
[400334953,1767384640525,-253.0,0.000429,41]
[400334954,1767384640534,-1000.0,0.00042918,14]
[400334955,1767384640543,-200.0,0.00042932,60]
[400334956,1767384640552,-150.0,0.00042932,60]
[400334957,1767384640561,-200.0,0.00042932,60]
[400334958,1767384640571,-200.0,0.00042932,60]
[400334959,1767384640580,-153.0,0.00042932,60]
[400334960,1767384640590,-3575.0,0.00042935,120]
[400334961,1767384640600,-157.23045561,0.00042955,7]
[400334962,1767384640609,-151.4,0.00042955,2]
[400334963,1767384640619,-151.4,0.00042955,2]
[400334964,1767384640629,-151.4,0.00042955,2]
[400334965,1767384640638,-151.4,0.00042955,2]
[400334966,1767384640647,-151.4,0.00042955,2]
[400334967,1767384640657,-151.4,0.00042955,2]
[400334968,1767384640666,-151.4,0.00042955,2]
[400334969,1767384640676,-151.4,0.00042955,2]
[400334970,1767384640685,-151.4,0.00042955,2]
[400334971,1767384640694,-151.4,0.00042955,2]
[400334972,1767384640703,-151.4,0.00042955,2]
[400334973,1767384640712,-151.4,0.00042955,2]
[400334974,1767384640721,-151.4,0.00042955,2]
[400334975,1767384640731,-151.4,0.00042955,2]
[400334976,1767384640740,-151.4,0.00042955,2]
[400334977,1767384640749,-151.4,0.00042955,2]
[400334978,1767384640758,-151.4,0.00042955,2]
[400334979,1767384640767,-151.4,0.00042955,2]
[400334980,1767384640776,-151.4,0.00042955,2]
[400334981,1767384640786,-151.4,0.00042955,2]
[400334982,1767384640795,-151.4,0.00042955,2]
[400334983,1767384640805,-151.4,0.00042955,2]
[400334984,1767384640817,-151.4,0.00042955,2]
[400334985,1767384640826,-151.4,0.00042955,2]
[400334986,1767384640836,-151.4,0.00042955,2]
[400334987,1767384640845,-151.4,0.00042955,2]
[400334988,1767384640854,-151.4,0.00042955,2]
[400334989,1767384640863,-151.4,0.00042955,2]
[400334990,1767384640872,-151.4,0.00042955,2]
[400334991,1767384640881,-151.4,0.00042955,2]
[400334992,1767384640890,-151.4,0.00042955,2]
[400334993,1767384640899,-151.4,0.00042955,2]
[400334994,1767384640909,-151.4,0.00042955,2]
[400334995,1767384640919,-151.4,0.00042955,2]
[400334996,1767384640929,-151.4,0.00042955,2]
[400334997,1767384640938,-151.4,0.00042955,2]
[400334998,1767384640948,-151.4,0.00042955,2]
[400334999,1767384640958,-151.4,0.00042955,2]
[400335000,1767384640968,-151.4,0.00042955,2]
[400335001,1767384640977,-151.4,0.00042955,2]
[400335002,1767384640986,-151.4,0.00042955,2]
[400335003,1767384640995,-150.0,0.00042959,30]
[400335004,1767384641004,-150.0,0.00042959,30]
[400335005,1767384641014,-150.0,0.00042959,30]
[400335006,1767384641023,-1222.64,0.00042959,30]
[400335007,1767384641032,-171.08,0.00042959,30]
[400335008,1767384641041,-931.74,0.00042959,30]
[400335009,1767384641050,-178.8,0.00042959,30]
[400335010,1767384641059,-171.08,0.00042959,30]
[400335011,1767384641071,-178.8,0.00042959,30]
[400335012,1767384641081,-171.08,0.00042959,30]
[400335013,1767384641090,-178.8,0.00042959,30]
[400335014,1767384641099,-171.08,0.00042959,30]
[400335015,1767384641108,-178.8,0.00042959,30]
[400335016,1767384641117,-151.21,0.00042959,30]
[400335017,1767384641126,-335.5,0.00042959,30]
[400335018,1767384641135,-472.19,0.00042959,30]
[400335019,1767384641145,-341.86,0.00042959,30]
[400335020,1767384641154,-660.52,0.00042959,30]
[400335021,1767384641163,-482.01,0.00042959,30]
[400335022,1767384641173,-660.52,0.00042959,30]
[400335023,1767384641182,-482.01,0.00042959,30]
[400335024,1767384641191,-482.01,0.00042959,30]
[400335025,1767384641200,-482.01,0.00042959,30]
[400335026,1767384641209,-481.21,0.00042959,30]
[400335027,1767384641219,-1312.48,0.00042959,30]
[400335028,1767384641228,-157.0,0.00042959,14]
[400335029,1767384641237,-157.0,0.00042959,14]
[400335030,1767384641246,-164.0,0.00042959,14]
[400335031,1767384641256,-154.0,0.00042959,14]
[400335032,1767384641265,-164.0,0.00042959,14]
[400335033,1767384641274,-157.0,0.00042959,14]
[400335034,1767384641284,-154.0,0.00042959,14]
[400335035,1767384641294,-164.0,0.00042959,14]
[400335036,1767384641303,-157.0,0.00042959,14]
[400335037,1767384641313,-154.0,0.00042959,14]
[400335038,1767384641327,-175.29287023,0.00042959,14]
[400335039,1767384641337,-154.0,0.00042959,14]
[400335040,1767384641346,-157.0,0.00042959,14]
[400335041,1767384641356,-157.0,0.00042959,14]
[400335042,1767384641374,-154.0,0.00042959,14]
[400335043,1767384641385,-163.96549456,0.00042959,14]
[400335044,1767384641396,-154.0,0.00042959,14]
[400335045,1767384641406,-154.0,0.00042959,14]
[400335046,1767384641415,-154.0,0.00042959,14]
[400335047,1767384641426,-230.18168545,0.00042959,14]
[400335048,1767384641435,-572.0,0.00042959,120]
[400335049,1767384641443,-841.88259,0.00042959,120]
[400335050,1767384641453,-841.88259,0.00042959,120]
[400335051,1767384641462,-841.88259,0.00042959,120]
[400335052,1767384641471,-841.88259,0.00042959,120]
[400335053,1767384641480,-841.8826,0.00042959,120]
[400335054,1767384641489,-2378.0,0.0004296,30]
[400335055,1767384641498,-216.0,0.0004296,30]
[400335056,1767384641507,-5419.44662054,0.00042961,4]
[400335057,1767384641516,-278.36328388,0.00042961,120]
[400335058,1767384641526,-151.0,0.00042961,120]
[400335059,1767384641535,-151.0,0.00042964,120]
[400335060,1767384641544,-1201.88247548,0.00042964,120]
[400335061,1767384641555,-200.0,0.00042964,7]
[400335062,1767384641565,-150.0,0.00042964,120]
[400335063,1767384641575,-1416.77510428,0.00042964,30]
[400335064,1767384641584,-1416.77510428,0.00042964,30]
[400335065,1767384641595,-440.39799439,0.00042964,30]
[400335066,1767384641605,-440.39799439,0.00042964,30]
[400335067,1767384641614,-9119.77464529,0.00042964,27]
[400335068,1767384641952,-1.7e-07,0.00042964,27]
[400335069,1767384642106,-32177.06492712,0.00042964,27]
[400335070,1767384642116,-734928.9344355,0.00042965,7]
[400335074,1767384644196,-565.0,0.00037693,2]
[400335075,1767384644207,-565.0,0.00040693,2]
[400335076,1767384644216,-303208.24380859,0.00042965,7]
[400335077,1767384644229,-178038.97269098,0.00042965,7]
[400335089,1767384646081,-948.92738454,0.00042965,7]
[400335092,1767384657203,282.8429644,0.00018865,2]
[400335093,1767384657388,282.8429644,0.00021373,2]
[400335094,1767384657596,282.8429644,0.00023882,2]
[400335095,1767384660994,500.0,0.00042965,120]
[400335096,1767384962351,500.0,0.00042966,120]
[400335097,1767384976239,686.9,0.00016827,2]
[400335098,1767384976457,686.9,0.00017713,2]
[400335099,1767384976652,686.9,0.00018598,2]
[400335100,1767384976872,686.9,0.00019484,2]
[400335101,1767384977059,686.9,0.0002037,2]
[400335102,1767384977250,686.9,0.00021255,2]
[400335103,1767384977477,686.9,0.00022141,2]
[400335104,1767384977695,686.9,0.00023027,2]
[400335105,1767384977928,686.9,0.00023912,2]
[400335106,1767385038259,151.0,0.00024248,2]
[400335107,1767385038889,151.0,0.00024248,2]
[400335108,1767385054651,151.0,0.00024226,2]
[400335109,1767385054975,151.0,0.00024226,2]
[400335110,1767385071129,151.0,0.00024237,2]
[400335111,1767385071659,151.0,0.00024237,2]
[400335112,1767385086683,500.0,0.00027777,120]
[400335113,1767385087273,151.0,0.00024247,2]
[400335114,1767385087782,151.0,0.00024247,2]
[400335115,1767385097286,250.0,0.00017,2]
[400335116,1767385098355,300.0,0.00019,2]
[400335117,1767385099455,350.0,0.00021,2]
[400335118,1767385100533,400.0,0.00023,2]
[400335119,1767385103379,151.0,0.00024279,2]
[400335120,1767385104471,151.0,0.00024305,2]
[400335121,1767385120505,151.0,0.00024176,2]
[400335122,1767385177705,165.76,0.00024604,2]
[400335123,1767385200094,151.0,0.00024152,2]
[400335124,1767385232731,151.0,0.0002416,2]
[400335125,1767385249288,151.0,0.00024125,2]
[400335126,1767385261061,500.0,0.00042974,120]
[400335127,1767385265545,151.0,0.00024304,2]
[400335128,1767385297991,151.0,0.00024234,2]
[400335129,1767385347177,3408.04,0.00024459,2]
[400335130,1767385393832,151.0,0.00024121,2]
[400335131,1767385409956,151.0,0.00024121,2]
[400335132,1767385426098,151.0,0.00024121,2]
[400335133,1767385442745,151.0,0.00024121,2]
[400335134,1767385475150,151.0,0.00024083,2]
[400335135,1767385508831,1955.21,0.00018,2]
[400335136,1767385508856,10000.01,0.00018,2]
[400335137,1767385508882,10000.01,0.00018,2]
[400335138,1767385508909,10000.01,0.00018,2]
[400335139,1767385508934,10000.01,0.00018,2]
[400335140,1767385508957,10000.01,0.00018,2]
[400335141,1767385508981,10000.01,0.00018,2]
[400335142,1767385509003,10000.01,0.00018,2]
[400335143,1767385509031,600000.0,0.00018,2]
[400335144,1767385509905,-373.03019118,0.00018,2]
[400335145,1767385511582,-153.74906024,0.00018,2]
[400335146,1767385513136,-173.57223932,0.00018,2]
[400335147,1767385517778,-360.06694479,0.00018,2]
[400335148,1767385520379,-245.25,0.00018,2]
[400335149,1767385526811,-451.25403532,0.00018,2]
[400335150,1767385528907,-5878.61,0.00018,2]
[400335151,1767385529139,-318.55492717,0.00018,2]
[400335152,1767385530896,-10000.01,0.00018,2]
[400335153,1767385531077,-10000.01,0.00018,2]
[400335154,1767385531172,-10000.01,0.00018,2]
[400335155,1767385531281,-10000.01,0.00018,2]
[400335156,1767385531379,-10000.01,0.00018,2]
[400335157,1767385531529,-10000.01,0.00018,2]
[400335158,1767385531665,-10000.01,0.00018,2]
[400335160,1767385534181,-165.12680531,0.00018,2]
[400335161,1767385536859,-10000.01,0.00018,2]
[400335162,1767385537001,-10000.01,0.00018,2]
[400335163,1767385538848,-166.72790001,0.00018,2]
[400335164,1767385542218,-255.69036111,0.00018,2]
[400335165,1767385543099,23478.62339691,0.00042974,120]
[400335166,1767385543258,-10000.01,0.00018,2]
[400335167,1767385543503,-10000.01,0.00018,2]
[400335168,1767385543630,-10000.01,0.00018,2]
[400335169,1767385543794,-10000.01,0.00018,2]
[400335170,1767385543928,-10000.01,0.00018,2]
[400335171,1767385545726,-168.52581633,0.00018,2]
[400335172,1767385546402,-10000.01,0.00018,2]
[400335173,1767385546568,-10000.01,0.00018,2]
[400335174,1767385546671,-10000.01,0.00018,2]
[400335175,1767385547831,5826.10236554,0.00042974,120]
[400335176,1767385551319,-364.72266039,0.00018,2]
[400335177,1767385555784,-10000.01,0.000179,2]
[400335178,1767385556014,-2427.89066643,0.000179,2]
[400335179,1767385556050,-5144.22866714,0.00018,2]
[400335180,1767385556180,-10000.01,0.00018,2]
[400335181,1767385558012,-185.87709987,0.00018,2]
[400335182,1767385559860,-172.42734583,0.00018,2]
[400335183,1767385561684,500.0,0.00042974,120]
[400335184,1767385561720,-300.0,0.00017999,2]
[400335185,1767385561760,-9400.01,0.00018,2]
[400335186,1767385561893,-10000.01,0.00018,2]
[400335187,1767385562059,-10000.01,0.00018,2]
[400335188,1767385564831,-10000.01,0.00018,2]
[400335189,1767385564982,-10000.01,0.00018,2]
[400335190,1767385565103,-10000.01,0.00018,2]
[400335191,1767385566149,-152.41563139,0.00018,2]
[400335192,1767385567938,-287.45422444,0.00018,2]
[400335193,1767385568385,-10000.01,0.00018,2]
[400335194,1767385568586,-10000.01,0.00018,2]
[400335195,1767385568717,-10000.01,0.00018,2]
[400335196,1767385569465,9270.59420659,0.00042974,30]
[400335197,1767385571325,-10000.01,0.00018,2]
[400335198,1767385571438,-10000.01,0.00018,2]
[400335199,1767385571542,-10000.01,0.00018,2]
[400335200,1767385574413,-10000.01,0.00018,2]
[400335201,1767385574532,-10000.01,0.00018,2]
[400335202,1767385574764,-10000.01,0.00018,2]
[400335203,1767385575305,-300.0,0.00018,2]
[400335204,1767385577007,-199.51705968,0.00018,2]
[400335205,1767385577788,-10000.01,0.00018,2]
[400335206,1767385578008,-10000.01,0.00018,2]
[400335207,1767385578129,-10000.01,0.00018,2]
[400335208,1767385580600,-10000.01,0.00018,2]
[400335209,1767385580730,-10000.01,0.00018,2]
[400335210,1767385580904,-10000.01,0.00018,2]
[400335211,1767385582601,-241.37589248,0.00018,2]
[400335212,1767385583745,-10000.01,0.00018,2]
[400335213,1767385583988,-10000.01,0.00018,2]
[400335214,1767385584138,-10000.01,0.00018,2]
[400335215,1767385584906,-178.41,0.00018,2]
[400335216,1767385587018,-779.19323046,0.000177,2]
[400335217,1767385587060,-8441.62353908,0.00018,2]
[400335218,1767385587226,-10000.01,0.00018,2]
[400335219,1767385587331,-10000.01,0.00018,2]
[400335220,1767385589957,-10000.01,0.00018,2]
[400335221,1767385589985,-165.33600017,0.00018,2]
[400335222,1767385590088,-10000.01,0.00018,2]
[400335223,1767385590215,-10000.01,0.00018,2]
[400335224,1767385591930,-196.62354232,0.00017999,2]
[400335225,1767385593114,-451.36635863,0.00017999,2]
[400335226,1767385593151,-325.04400628,0.00017999,2]
[400335227,1767385593184,-500.0,0.00017999,2]
[400335228,1767385593217,-157.79600896,0.00017999,2]
[400335229,1767385593250,-500.0,0.00017999,2]
[400335230,1767385593283,-501.81860917,0.00017999,2]
[400335231,1767385593319,-500.0,0.00017999,2]
[400335232,1767385593356,-500.0,0.00017999,2]
[400335233,1767385593387,-500.0,0.00017999,2]
[400335234,1767385593424,-500.0,0.00017999,2]
[400335235,1767385593456,-563.35827381,0.00017999,2]
[400335236,1767385593598,-1.2434863,0.00017999,2]
[400335237,1767385594011,-500.0,0.00017999,2]
[400335238,1767385594083,-500.0,0.00017999,2]
[400335239,1767385594115,-500.0,0.00017999,2]
[400335240,1767385594147,-500.0,0.00017999,2]
[400335241,1767385594183,-500.0,0.00017999,2]
[400335242,1767385594213,-500.0,0.00017999,2]
[400335243,1767385594245,-500.0,0.00017999,2]
[400335244,1767385594274,-245.20272775,0.00017999,2]
[400335245,1767385594305,-500.0,0.00017999,2]
[400335246,1767385594338,-500.0,0.00017999,2]
[400335247,1767385594369,-5.63493845,0.00017999,2]
[400335248,1767385594478,-495.847695,0.00017999,2]
[400335249,1767385594511,-500.0,0.00017999,2]
[400335250,1767385594544,-500.0,0.00017999,2]
[400335251,1767385594579,-500.0,0.00017999,2]
[400335252,1767385594613,-500.0,0.00017999,2]
[400335253,1767385594647,-500.0,0.00017999,2]
[400335254,1767385594679,-500.0,0.00017999,2]
[400335255,1767385594712,-500.0,0.00017999,2]
[400335256,1767385594745,-500.0,0.00017999,2]
[400335257,1767385594777,-500.0,0.00017999,2]
[400335258,1767385595414,-500.0,0.00017999,2]
[400335259,1767385595429,-8.31461,0.00017999,2]
[400335260,1767385596372,-491.68539,0.00017999,2]
[400335261,1767385596405,-500.0,0.00017999,2]
[400335262,1767385596440,-500.0,0.00017999,2]
[400335263,1767385596473,-500.0,0.00017999,2]
[400335264,1767385596505,-500.0,0.00017999,2]
[400335265,1767385596538,-500.0,0.00017999,2]
[400335266,1767385596575,-195.89250887,0.00017999,2]
[400335267,1767385596628,-500.0,0.00017999,2]
[400335268,1767385596664,-500.0,0.00017999,2]
[400335269,1767385596697,-500.0,0.00017999,2]
[400335270,1767385596889,-624.85420226,0.00018,2]
[400335271,1767385596906,-10000.01,0.00018,2]
[400335272,1767385596930,-10000.01,0.00018,2]
[400335273,1767385597038,-10000.01,0.00018,2]
[400335274,1767385597170,-10000.01,0.00018,2]
[400335275,1767385597413,-10000.01,0.00018,2]
[400335276,1767385597529,-10000.01,0.00018,2]
[400335277,1767385598934,-267.89099218,0.00018,2]
[400335278,1767385599362,-10000.01,0.00018,2]
[400335279,1767385600638,-212.7008551,0.00018,2]
[400335280,1767385602472,-10000.01,0.00018,2]
[400335281,1767385602711,-10000.01,0.00018,2]
[400335282,1767385602855,-10000.01,0.00018,2]
[400335283,1767385602997,-10000.01,0.00018,2]
[400335284,1767385603111,-10000.01,0.00018,2]
[400335285,1767385603211,-10000.01,0.00018,2]
[400335286,1767385603325,-10000.01,0.00018,2]
[400335287,1767385606083,-179.51236522,0.00018,2]
[400335288,1767385608425,-334.41627645,0.00017999,2]
[400335289,1767385609137,-165.58372355,0.00017999,2]
[400335290,1767385609162,-500.0,0.00017999,2]
[400335291,1767385609187,-178.92360101,0.00017999,2]
[400335292,1767385614027,-282.90204108,0.00017999,2]
[400335293,1767385617043,-38.17435791,0.00017999,2]
[400335294,1767385617069,-193.5943505,0.00017999,2]
[400335295,1767385620887,-306.4056495,0.00017999,2]
[400335296,1767385620924,-500.0,0.00017999,2]
[400335297,1767385620956,-500.0,0.00017999,2]
[400335298,1767385620988,-500.0,0.00017999,2]
[400335299,1767385621018,-500.0,0.00017999,2]
[400335300,1767385621048,-500.0,0.00017999,2]
[400335301,1767385621079,-500.0,0.00017999,2]
[400335302,1767385621112,-500.0,0.00017999,2]
[400335303,1767385621146,-500.0,0.00017999,2]
[400335304,1767385621177,-500.0,0.00017999,2]
[400335305,1767385621271,-500.0,0.00017999,2]
[400335306,1767385621303,-500.0,0.00017999,2]
[400335307,1767385621335,-500.0,0.00017999,2]
[400335308,1767385621367,-500.0,0.00017999,2]
[400335309,1767385621403,-500.0,0.00017999,2]
[400335310,1767385621435,-500.0,0.00017999,2]
[400335311,1767385621466,-195.89250887,0.00017999,2]
[400335312,1767385621634,-392.34253478,0.00018,2]
[400335313,1767385621737,-191.30619213,0.00017998,2]
[400335314,1767385621752,-108.69380787,0.00017998,2]
[400335315,1767385621761,-87.198701,0.00018,2]
[400335316,1767385621775,-3608.22498226,0.00018,2]
[400335317,1767385621800,-10000.01,0.00018,2]
[400335318,1767385621815,-10000.01,0.00018,2]
[400335319,1767385621855,-10000.01,0.00018,2]
[400335320,1767385621870,-10000.01,0.00018,2]
[400335321,1767385621899,-10000.01,0.00018,2]
[400335322,1767385621912,-10000.01,0.00018,2]
[400335323,1767385621937,-10000.01,0.00018,2]
[400335324,1767385622923,-203.86,0.00017998,2]
[400335325,1767385624154,-346.14,0.00017998,2]
[400335326,1767385624183,-300.0,0.00017998,2]
[400335327,1767385624234,-8707.73,0.00018,2]
[400335328,1767385624283,-10000.01,0.00018,2]
[400335329,1767385625271,-257.79369329,0.00018,2]
[400335331,1767385630517,-262.12448964,0.00018,2]
[400335332,1767385637293,-330.75854892,0.00018,2]
[400335333,1767385637788,500.0,0.00016973,2]
[400335334,1767385638742,500.0,0.00016973,2]
[400335335,1767385638797,-187.80115239,0.00018,2]
[400335336,1767385639897,500.0,0.00016973,2]
[400335337,1767385640092,500.0,0.00016973,2]
[400335338,1767385640670,500.0,0.00016973,2]
[400335339,1767385641246,-418.62622243,0.00018,2]
[400335340,1767385642615,-10000.01,0.00018,2]
[400335341,1767385642819,-10000.01,0.00018,2]
[400335342,1767385642972,-10000.01,0.00018,2]
[400335343,1767385643117,-10000.01,0.00018,2]
[400335344,1767385643423,-10000.01,0.00018,2]
[400335345,1767385643478,500.0,0.00016973,2]
[400335346,1767385645141,-180.42847508,0.00018,2]
[400335347,1767385645565,-10000.01,0.00018,2]
[400335348,1767385645680,-10000.01,0.00018,2]
[400335349,1767385646269,500.0,0.00016973,2]
[400335350,1767385646370,533.41,0.00016973,2]
[400335351,1767385647072,500.0,0.00016973,2]
[400335352,1767385647749,-181.65421159,0.00018,2]
[400335353,1767385648819,-10000.01,0.00018,2]
[400335354,1767385648952,-10000.01,0.00018,2]
[400335355,1767385649075,-580.14270262,0.000179,2]
[400335356,1767385649111,-8839.72459476,0.00018,2]
[400335357,1767385649171,-10000.01,0.00018,2]
[400335358,1767385653061,-238.65802363,0.00018,2]
[400335359,1767385655300,-276.0742652,0.00017999,2]
[400335360,1767385659442,-135.66561409,0.00017999,2]
[400335361,1767385659465,-53.58210661,0.00017999,2]
[400335362,1767385660070,9207.33795,0.00017908,2]
[400335363,1767385661740,-98.04888994,0.00017999,2]
[400335364,1767385661765,-66.51210889,0.00018,2]
[400335365,1767385663355,-159.15,0.00018,2]
[400335366,1767385665035,-259.76372749,0.00018,2]
[400335367,1767385669361,-272.03717637,0.00018,2]
[400335368,1767385671076,-160.75987812,0.00018,2]
[400335369,1767385673404,-331.84953778,0.00018,2]
[400335370,1767385678100,-163.83925901,0.00018,2]
[400335371,1767385680014,-368.94471209,0.00018,2]
[400335372,1767385685497,-249.40125545,0.00017999,2]
[400335373,1767385686287,500.0,0.00016973,2]
[400335374,1767385689469,-50.59874455,0.00017999,2]
[400335375,1767385689491,-187.8922645,0.00018,2]
[400335376,1767385692898,-435.80607334,0.00017999,2]
[400335378,1767385696636,-261.43882514,0.00017999,2]
[400335379,1767385700615,292.67205,0.000179,2]
[400335380,1767385700639,3594.07018942,0.000179,2]
[400335381,1767385701001,-281.49733174,0.00017999,2]
[400335382,1767385701701,-221.25776978,0.00017999,2]
[400335383,1767385702725,-259.76001502,0.00018,2]
[400335384,1767385704927,-40.23998498,0.00018,2]
[400335385,1767385704951,-156.21597287,0.00018,2]
[400335387,1767385710515,-163.83100343,0.00018,2]
[400335389,1767385712949,-163.77126412,0.00018,2]
[400335390,1767385713025,9557.49446044,0.000179,2]
[400335391,1767385713051,4279.93321572,0.000179,2]
[400335392,1767385713466,5720.07678428,0.000179,2]
[400335393,1767385713491,10000.01,0.000179,2]
[400335394,1767385713515,3132.66541785,0.000179,2]
[400335395,1767385715479,273.87594425,0.0001799,2]
[400335396,1767385718444,-309.00967224,0.00018,2]
[400335398,1767385720251,-195.57434488,0.00018,2]
[400335399,1767385724604,160.0,0.00017,2]
[400335400,1767385725389,-175.40086287,0.00018,2]
[400335401,1767385725743,160.47,0.0001771,2]
[400335402,1767385728201,-200.0,0.00018,2]
[400335404,1767385733440,-300.86586413,0.00018,2]
[400335405,1767385735842,-186.96273635,0.00018,2]
[400335406,1767385740848,-300.0,0.00018,2]
[400335407,1767385741217,300.0,0.00017999,2]
[400335408,1767385743283,-168.97095005,0.00018,2]
[400335409,1767385744678,500.0,0.00016973,2]
[400335410,1767385744956,586.65461405,0.00016973,2]
[400335411,1767385746708,-334.67187531,0.00018,2]
[400335412,1767385749377,-170.90443543,0.00018,2]
[400335413,1767385751103,500.0,0.00016973,2]
[400335414,1767385751741,-500.0,0.00018,2]
[400335415,1767385757106,-163.03828711,0.00018,2]
[400335416,1767385760084,-168.15046222,0.00018,2]
[400335417,1767385765714,179.52751018,0.000179,2]
[400335418,1767385765972,-179.79888882,0.00018,2]
[400335419,1767385767842,-203.84285119,0.00018,2]